fUST/lending_fUST_20240430
["ID","MTS","AMOUNT","RATE_DAILY","PERIOD"]
[324904231,1714406433502,1000.0,0.000266,30]
[324904232,1714406447765,1000.0,0.000266,40]
[324904233,1714406472223,1000.0,0.000266,50]
[324904238,1714406732114,-195.21433055,0.00013799,2]
[324904240,1714406804697,513.47404116,9.999e-05,2]
[324904241,1714406829103,-730.61014924,0.00013898,2]
[324904242,1714406829122,-717.86575868,0.00013899,2]
[324904243,1714406829142,-156.44509548,0.000139,2]
[324904244,1714406829161,-887.3569718,0.00014,2]
[324904245,1714406830727,250.0,0.00025,15]
[324904246,1714406836149,-843.2101005,0.00014899,2]
[324904247,1714406843414,250.0,0.00025,15]
[324904249,1714406855247,250.0,0.00025,15]
[324904250,1714406867737,250.0,0.00025,15]
[324904251,1714406880206,250.0,0.00025,15]
[324904252,1714406893918,250.0,0.00025,15]
[324904253,1714406906600,250.0,0.00025,15]
[324904257,1714406919261,250.0,0.00025,15]
[324904258,1714406932338,250.0,0.00025,15]
[324904262,1714406945304,250.0,0.00025,15]
[324904263,1714406959158,250.0,0.00025,15]
[324904266,1714406972806,250.0,0.00025,15]
[324904267,1714406985544,488.997,0.00025,15]
[324904309,1714407031958,-717.86575868,0.00014373,2]
[324904311,1714407031967,-766.7894455,0.00014374,2]
[324904312,1714407031976,-300.0,0.00014728,2]
[324904313,1714407031985,-513.47404116,0.00014898,2]
[324904314,1714407031995,-85.35029583,0.00014899,2]
[324904315,1714407032003,-1296.74424882,0.000149,2]
[324904316,1714407032012,-300.0,0.00014993,2]
[324904317,1714407032021,-20195.8243466,0.00014994,2]
[324904318,1714407032031,-2626.30439442,0.00014997,2]
[324904319,1714407032041,-260.51204675,0.00014997,2]
[324904320,1714407032050,-939.34960788,0.000162,2]
[324904321,1714407032059,-2101.14247839,0.000162,2]
[324904322,1714407032069,-312.89043206,0.000162,2]
[324904323,1714407032078,-420.0,0.00016201,2]
[324904324,1714407032087,-420.0,0.00016409,2]
[324904325,1714407032096,-2929.2665084,0.00016441,2]
[324904326,1714407032104,-1272.8490852,0.00016591,2]
[324904327,1714407032113,-166.666666,0.00016774,2]
[324904328,1714407032125,-2972.2884577,0.00016775,2]
[324904329,1714407032134,-236.153935,0.00017176,2]
[324904330,1714407032144,-587.0,0.00017821,2]
[324904331,1714407032153,-587.0,0.00017959,2]
[324904332,1714407032163,-392.26712033,0.00018221,2]
[324904333,1714407032172,-222.32005232,0.000189,2]
[324904335,1714407032181,-7934.04214632,0.00019077,2]
[324904336,1714407032190,-2036.45370538,0.00019078,2]
[324904338,1714407032200,-160.931777,0.00019178,2]
[324904340,1714407032208,-161.001113,0.00019178,2]
[324904342,1714407032218,-823.0,0.00019603,2]
[324904344,1714407032227,-600.0,0.00019655,2]
[324904346,1714407032236,-785.25,0.00019789,3]
[324904348,1714407032245,-39829.66518013,0.00019799,2]
[324904351,1714407032265,-22851.23938312,0.00019799,2]
[324904951,1714407037967,-500.0,0.00019798,2]
[324904953,1714407037977,-500.0,0.00019798,2]
[324904955,1714407037987,-508.51633184,0.00019798,2]
[324904958,1714407037997,-500.0,0.00019798,2]
[324904960,1714407038008,-500.0,0.00019798,2]
[324904962,1714407038018,-500.0,0.00019798,2]
[324904963,1714407038029,-500.0,0.00019798,2]
[324904980,1714407038041,-547.75517476,0.00019798,2]
[324904982,1714407038188,-300.0,0.00019798,2]
[324904984,1714407038199,-500.0,0.00019798,2]
[324904986,1714407038208,-500.0,0.00019798,2]
[324904988,1714407038218,-500.0,0.00019798,2]
[324904990,1714407038227,-500.0,0.00019798,2]
[324904992,1714407038237,-500.0,0.00019798,2]
[324904994,1714407038247,-500.0,0.00019798,2]
[324904996,1714407038257,-556.17076143,0.00019798,2]
[324904998,1714407038266,-347519.98466884,0.00019799,2]
[324905000,1714407038275,-44444.0,0.000198,2]
[324905002,1714407038286,-1491.68295957,0.00019898,2]
[324905004,1714407038296,-6963.0217691,0.00019899,2]
[324905006,1714407038305,-2000.0,0.00019899,2]
[324905008,1714407038315,-5000.0,0.000199,2]
[324905010,1714407038325,-293.76990106,0.00019997,2]
[324905012,1714407038334,-10481.03229319,0.0002,2]
[324905014,1714407038343,-67415.61392424,0.0002,2]
[324905016,1714407038353,-241.68429594,0.0002,2]
[324905018,1714407038362,-329.93912296,0.0002,2]
[324905020,1714407038371,-154.75239617,0.0002,2]
[324905022,1714407038380,-1677.62779446,0.00020811,2]
[324905024,1714407038390,-195.70454611,0.00020912,2]
[324905026,1714407038398,-2750.81470958,0.00020912,2]
[324905028,1714407038408,-220.51178655,0.00020912,2]
[324905030,1714407038417,-266.44400618,0.00020912,2]
[324905032,1714407038426,-189.61331893,0.00020912,2]
[324905034,1714407038435,-501.8777164,0.00020913,2]
[324905036,1714407038444,-1152.0,0.00021563,2]
[324905038,1714407038455,-1296.74424875,0.000219,2]
[324905039,1714407038465,-10000.0,0.00021918,2]
[324905041,1714407038475,-280.68822047,0.00021918,2]
[324905044,1714407038485,-284.93516068,0.00021918,2]
[324905046,1714407038494,-159.19819518,0.00022,2]
[324905048,1714407038503,-170.818184,0.00022466,2]
[324905050,1714407038512,-163.852778,0.00022466,2]
[324905051,1714407038522,-335.028794,0.00022466,2]
[324905054,1714407038532,-165.849631,0.00022466,2]
[324905056,1714407038541,-180.8752,0.00022466,2]
[324905058,1714407038551,-714.0781204,0.00023,2]
[324905060,1714407038560,-222.32005232,0.000239,2]
[324905062,1714407038571,-107626.84163727,0.00024,2]
[324905063,1714407038580,-500.0,0.00024657,2]
[324905065,1714407038589,-380.0,0.00024658,2]
[324905068,1714407038599,-154.78330029,0.00025,2]
[324905070,1714407038609,-189.42695326,0.00025,2]
[324905072,1714407038618,-154.75239617,0.00025,2]
[324905074,1714407038628,-1835.93152535,0.00025,2]
[324905076,1714407038638,-154.75239617,0.00025,2]
[324905077,1714407038648,-2000.0,0.00025,2]
[324905079,1714407038659,-154.75239617,0.00025,2]
[324905081,1714407038668,-1564.03593502,0.00025,2]
[324905084,1714407038677,-10596.07047515,0.00025,2]
[324905086,1714407038687,-11119.57201086,0.00026,2]
[324905088,1714407038696,-756.73987356,0.000266,2]
[324905089,1714407038706,-391.10655818,0.000266,2]
[324905091,1714407038715,-8527.63031331,0.00027,2]
[324905094,1714407038725,-304451.3386196,0.00027,15]
[324905096,1714407038736,-166.666666,0.00027397,2]
[324905098,1714407038748,-975.65412207,0.000274,2]
[324905100,1714407038757,-31297.24918352,0.000275,2]
[324905102,1714407038767,-105567.88325099,0.0002763,2]
[324905104,1714407038776,-424.03324128,0.00028,2]
[324905106,1714407038785,-58081.82293099,0.00028,4]
[324905108,1714407038793,-3754.1809699,0.00028,3]
[324905110,1714407038803,-166.666666,0.00028038,2]
[324905112,1714407038813,-335.028794,0.00028493,2]
[324905114,1714407038823,-180.8752,0.00028493,2]
[324905116,1714407038832,-166.666666,0.00028679,2]
[324905118,1714407038841,-127190.66315456,0.0002877,2]
[324905120,1714407038850,-1296.74424875,0.000289,4]
[324905122,1714407038859,-166.666666,0.00029321,2]
[324905124,1714407038869,-5838.68871779,0.000299,2]
[324905134,1714407038957,-5886.71844402,0.000299,2]
[324905146,1714407039147,-662.85805754,0.000299,2]
[324905569,1714407043115,-236.153935,0.00025582,2]
[324905572,1714407043126,-71.92671937,0.000299,2]
[324905574,1714407043138,-4859.84299656,0.000299,2]
[324907039,1714408000651,1621.73271947,9.999e-05,2]
[324907040,1714408006993,212.26666393,9.999e-05,2]
[324907041,1714408033137,-312.89043206,0.00015,2]
[324907042,1714408033158,-560.31878362,0.00015,2]
[324907043,1714408046092,-379.03082426,0.00015,2]
[324907044,1714408046113,-2101.14247839,0.00015,2]
[324907045,1714408046133,-2132.14138618,0.00018411,2]
[324907047,1714408140929,513.47404116,9.999e-05,2]
[324907048,1714408141209,1000.0,0.000266,55]
[324907049,1714408156010,1000.0,0.000266,45]
[324907050,1714408184049,1000.0,0.000266,35]
[324907079,1714408232116,-156.44509547,0.00018314,2]
[324907081,1714408232126,-1621.73271947,0.0001839,2]
[324907083,1714408232135,-198.1512273,0.00018391,2]
[324907085,1714408232146,-166.666666,0.00018414,2]
[324907088,1714408232157,-156.44509547,0.00018711,2]
[324907090,1714408232167,-150.0,0.000189,2]
[324907092,1714408232177,-307.35919629,0.00019,2]
[324907104,1714408232262,-1157.55415381,0.00019,2]
[324907156,1714408233116,500.0,0.000266,20]
[324907323,1714408238197,-810.98493516,0.00019,2]
[324907579,1714408240914,-5658.14386106,0.00019,2]
[324907580,1714408240923,-156.44509547,0.00019107,2]
[324907581,1714408240933,-500.0,0.00019178,2]
[324907582,1714408240942,-171.9727972,0.00019178,2]
[324907583,1714408240951,-500.0,0.00019178,2]
[324907584,1714408240960,-500.0,0.00019178,2]
[324907585,1714408240969,-534.92241201,0.00019178,2]
[324907586,1714408240979,-160.853045,0.00019178,2]
[324907587,1714408240988,-161.055278,0.00019178,2]
[324907588,1714408240997,-156.44509547,0.00019504,2]
[324907589,1714408241006,-154.96928135,0.00019898,2]
[324907590,1714408241016,-158.64520293,0.00019898,2]
[324907591,1714408241025,-155.03158943,0.00019898,2]
[324907592,1714408241034,-208.89353794,0.00019898,2]
[324907593,1714408241048,-194.17909869,0.00019898,2]
[324907594,1714408241057,-285.26332712,0.00019898,2]
[324907595,1714408241066,-303.0510824,0.00019898,2]
[324907596,1714408241076,-154.95481595,0.00019898,2]
[324907597,1714408241085,-1012.49812522,0.00019898,2]
[324907598,1714408241094,-1208.86633619,0.00019898,2]
[324907599,1714408241104,-524.51677271,0.00019898,2]
[324907600,1714408241113,-476.16164115,0.00019898,2]
[324907601,1714408241122,-155.39710041,0.00019898,2]
[324907602,1714408241132,-1096.49359461,0.00019898,2]
[324907603,1714408241141,-1149.70289251,0.00019898,2]
[324907605,1714408241151,-747.74993229,0.00019898,2]
[324907607,1714408241160,-219.80780572,0.00019898,2]
[324907609,1714408241169,-211.60313803,0.00019898,2]
[324907611,1714408241179,-285.02051777,0.00019898,2]
[324907613,1714408241188,-564.13193937,0.00019898,2]
[324907615,1714408241198,-2101.14247839,0.00019898,2]
[324907619,1714408241226,-327.69814743,0.00019898,2]
[324907621,1714408241235,-1246.69755972,0.00019898,2]
[324907623,1714408241244,-1025.04188415,0.00019898,2]
[324907625,1714408241254,-2000.0,0.00019899,2]
[324907627,1714408241263,-5000.0,0.000199,2]
[324907628,1714408241272,-44444.0,0.000199,2]
[324907629,1714408241282,-156.44509547,0.000199,2]
[324907630,1714408241293,-730.61014924,0.00019998,2]
[324907631,1714408241301,-183857.99235525,0.00019999,2]
[324907632,1714408241315,-82309.09965376,0.00019999,2]
[324907791,1714408243468,-3571.77697896,0.00019999,2]
[324907992,1714408246195,-197.08530684,0.00019998,2]
[324907993,1714408246205,-5622.05618399,0.00019999,2]
[324908204,1714408249004,607.77857922,0.000266,10]
[324908228,1714408265161,5251.7205103,0.000105,2]
[324908230,1714408306652,115.66371745,0.000105,2]
[324908231,1714408306674,246.76362379,0.000105,2]
[324908232,1714408306693,488.4149074,0.000105,2]
[324908233,1714408310622,5014.85141838,0.000105,2]
[324908234,1714408310642,5411.64846786,0.000105,2]
[324908235,1714408310663,188.05174099,0.000105,2]
[324908236,1714408310684,5339.3559019,0.000105,2]
[324908237,1714408310705,148.72585408,0.000105,2]
[324908238,1714408315119,2084.30400312,0.000105,2]
[324908239,1714408316631,314.78574907,9.999e-05,2]
[324908240,1714408324648,890.61929745,0.000105,2]
[324908241,1714408328622,5473.88378589,0.000105,2]
[324908242,1714408328643,153.0,0.000105,2]
[324908243,1714408328673,1236.51501763,0.000105,2]
[324908244,1714408331122,2084.30400312,0.000105,2]
[324908245,1714408332635,2807.21953425,0.00010499,2]
[324908246,1714408336146,683.23867972,9.999e-05,2]
[324908247,1714408353125,2084.30400312,0.000105,2]
[324908248,1714408375144,2084.30400312,9.999e-05,2]
[324908249,1714408388620,717.86575868,9.999e-05,2]
[324908250,1714408389132,2084.30400312,9.999e-05,2]
[324908252,1714408407137,1217.94499724,9.999e-05,2]
[324908253,1714408407171,866.35900588,9.999e-05,2]
[324908254,1714408427133,2084.30400312,9.999e-05,2]
[324908255,1714408430366,154.75239617,9.999e-05,2]
[324908256,1714408445128,2084.30400312,9.999e-05,2]
[324908257,1714408467147,1913.10130108,9.999e-05,2]
[324908258,1714408510689,14171.08479833,9.999e-05,2]
[324908259,1714408565405,1879.92888535,9.999e-05,2]
[324908260,1714408591664,629.13342962,0.0002,10]
[324908262,1714408913306,154.78330338,9.999e-05,2]
[324908264,1714408920551,2221.92583053,9.999e-05,2]
[324908265,1714408965222,2727.80241153,9.999e-05,2]
[324908266,1714408973740,1042.2144242,9.999e-05,2]
[324908267,1714408993695,226.83502459,9.999e-05,2]
[324908268,1714408994661,15472.60461272,9.999e-05,2]
[324908269,1714408994690,4723.21973388,9.999e-05,2]
[324908270,1714409007816,522.04127739,9.999e-05,2]
[324908271,1714409010084,521.1072121,9.999e-05,2]
[324908272,1714409014048,460.13643782,9.999e-05,2]
[324908273,1714409014723,497.95066876,9.999e-05,2]
[324908274,1714409016686,5807.75773021,9.999e-05,2]
[324908275,1714409017824,1010.6628734,9.999e-05,2]
[324908276,1714409035012,154.78330338,9.999e-05,2]
[324908277,1714409035695,154.78330338,9.999e-05,2]
[324908278,1714409049852,373.2582,9.999e-05,2]
[324908279,1714409050066,154.78330338,9.999e-05,2]
[324908280,1714409051211,1621.73271947,9.999e-05,2]
[324908281,1714409052424,1203.25513556,9.999e-05,2]
[324908282,1714409054920,154.78330338,9.999e-05,2]
[324908283,1714409057578,154.78330338,9.999e-05,2]
[324908284,1714409060033,314.78574907,9.999e-05,2]
[324908285,1714409072252,683.23867972,9.999e-05,2]
[324908286,1714409129979,291.65248483,9.999e-05,2]
[324908287,1714409151056,154.78330338,9.999e-05,2]
[324908288,1714409238360,154.78330338,9.999e-05,2]
[324908290,1714409347110,-1879.62800973,0.00012608,2]
[324908291,1714409347132,-314.78574907,0.00012608,2]
[324908292,1714409347153,-300.0,0.00012608,2]
[324908293,1714409347175,-300.0,0.00012608,2]
[324908294,1714409347197,-1891.6935913,0.00012609,2]
[324908295,1714409347217,-3122.30687673,0.00012609,2]
[324908296,1714409358126,-2807.21953425,0.00012607,2]
[324908297,1714409358147,-12550.5874735,0.00012609,2]
[324908298,1714409358168,-475.19457976,0.00013274,2]
[324908299,1714409358190,-156.86602769,0.00013275,2]
[324908300,1714409422521,218.4725484,0.00013275,2]
[324908301,1714409422767,164.0768642,9.999e-05,2]
[324908350,1714409432509,-311.11771556,0.00013275,2]
[324908351,1714409434776,208.08192276,9.999e-05,2]
[324908388,1714409438382,-1203.25513556,0.00013274,2]
[324908391,1714409438391,-10196.75359932,0.00013275,2]
[324908397,1714409438445,-5376.28951993,0.00013275,2]
[324908399,1714409438456,-154.78330338,0.00013275,2]
[324908401,1714409438466,-308.25930969,0.00013275,2]
[324908403,1714409438475,-947.8650571,0.00013403,2]
[324908405,1714409438485,-166.666666,0.00013699,2]
[324908407,1714409438495,-2807.21953425,0.00013979,2]
[324908409,1714409438505,-1891.6935913,0.00013979,2]
[324908411,1714409438515,-314.78574907,0.0001398,2]
[324908413,1714409438524,-208.09824163,0.00013981,2]
[324908415,1714409438533,-154.78330338,0.00013983,2]
[324908417,1714409438543,-300.0,0.00014718,2]
[324908419,1714409438552,-300.0,0.00014718,2]
[324908421,1714409438562,-682.94517247,0.00014719,2]
[324908423,1714409438572,-1882.61116434,0.00014719,2]
[324908425,1714409438581,-526.73680751,0.00014719,2]
[324908427,1714409438591,-154.82751895,0.00014719,2]
[324908429,1714409438600,-326.48498715,0.00014719,2]
[324908431,1714409438610,-1495.53626747,0.0001472,2]
[324908433,1714409438619,-9882.58339863,0.0001472,2]
[324908435,1714409438629,-33674.98781431,0.00014721,2]
[324908437,1714409438639,-521.80164607,0.00014723,2]
[324908439,1714409438648,-622.9170133,0.00014723,2]
[324908441,1714409438658,-1016.96820323,0.00014723,2]
[324908442,1714409438668,-488.38160066,0.00014723,2]
[324908443,1714409438677,-352.41603517,0.00014723,2]
[324908444,1714409438687,-194.62210913,0.00014723,2]
[324908445,1714409438697,-454.93624401,0.00014723,2]
[324908446,1714409438708,-155.40918491,0.00014723,2]
[324908447,1714409438718,-155.7387154,0.00014723,2]
[324908448,1714409438726,-154.9070094,0.00014723,2]
[324908449,1714409438736,-154.95337175,0.00014723,2]
[324908450,1714409438746,-247.32719899,0.00014723,2]
[324908451,1714409438757,-944.17717217,0.00014724,2]
[324908452,1714409438768,-285.18023274,0.00014725,2]
[324908453,1714409438777,-7873.55611444,0.00014726,2]
[324908454,1714409438787,-166.94542142,0.0001589,2]
[324908455,1714409438798,-514.23297925,0.00016,2]
[324908456,1714409438807,-420.0,0.00016113,2]
[324908457,1714409438817,-420.0,0.0001619,2]
[324908459,1714409438828,-166.94542137,0.00016558,2]
[324908460,1714409438839,-166.94542137,0.00017227,2]
[324908462,1714409438849,-587.0,0.00017639,2]
[324908464,1714409438860,-190.8257619,0.00017713,2]
[324908466,1714409438869,-587.0,0.00017809,2]
[324908468,1714409438879,-166.94542137,0.00017895,2]
[324908470,1714409438888,-250.0,0.00018126,2]
[324908472,1714409438897,-24900.0,0.00018126,2]
[324908474,1714409438907,-166.94542137,0.00018563,2]
[324908476,1714409438915,-383.7300129,0.0001871,2]
[324908478,1714409438926,-580.55,0.0001899,3]
[324908480,1714409438937,-1375.76053668,0.00019,2]
[324908482,1714409438946,-226.10249022,0.00019178,2]
[324908484,1714409438957,-444.70713659,0.00019178,2]
[324908486,1714409438966,-500.0,0.00019178,2]
[324908488,1714409438975,-500.0,0.00019178,2]
[324908490,1714409438984,-160.931777,0.00019178,2]
[324908492,1714409438993,-161.001113,0.00019178,2]
[324908494,1714409439003,-160.853045,0.00019178,2]
[324908495,1714409439013,-166.94542137,0.00019232,2]
[324908498,1714409439023,-319.48592969,0.0001924,2]
[324908499,1714409439033,-290.28,0.0001929,3]
[324908502,1714409439042,-870.86,0.0001929,3]
[324908503,1714409439052,-410200.88923209,0.000193,2]
[324908505,1714409439061,-823.0,0.00019311,2]
[324908508,1714409439071,-191.6,0.0001934,3]
[324908510,1714409439081,-319.48592967,0.00019405,2]
[324908511,1714409439090,-319.48592967,0.0001957,2]
[324908513,1714409439099,-823.0,0.0001959,2]
[324908516,1714409439109,-319.48592967,0.00019735,2]
[324908517,1714409439119,-2000.0,0.00019799,2]
[324908520,1714409439129,-154.84515485,0.000198,2]
[324908522,1714409439139,-550.56357256,0.00019896,2]
[324908524,1714409439148,-2116.0723361,0.00019896,2]
[324908526,1714409439158,-766.96438857,0.00019896,2]
[324908528,1714409439167,-1531.72301501,0.00019896,2]
[324908530,1714409439178,-206.46879434,0.00019896,2]
[324908532,1714409439187,-157.93698312,0.00019896,2]
[324908534,1714409439196,-167.36200956,0.00019896,2]
[324908536,1714409439206,-155.47780541,0.00019896,2]
[324908538,1714409439215,-599.27307542,0.00019896,2]
[324908540,1714409439225,-1813.9192014,0.00019897,2]
[324908542,1714409439234,-286.32427498,0.00019898,2]
[324908544,1714409439244,-206.71890398,0.00019898,2]
[324908545,1714409439254,-285.35930197,0.00019898,2]
[324908548,1714409439264,-719.84911317,0.00019898,2]
[324908549,1714409439274,-154.84515485,0.00019898,2]
[324908552,1714409439283,-155.11657848,0.00019898,2]
[324908553,1714409439293,-410.0497209,0.00019898,2]
[324908555,1714409439302,-1096.69418564,0.00019898,2]
[324908558,1714409439311,-155.74062207,0.00019898,2]
[324908560,1714409439322,-669.95382483,0.00019898,2]
[324908562,1714409439331,-154.87609912,0.00019898,2]
[324908564,1714409439341,-155.53802149,0.00019898,2]
[324908566,1714409439350,-155.16603618,0.00019898,2]
[324908568,1714409439360,-3133.32659327,0.00019899,7]
[324908569,1714409439369,-166.94542137,0.000199,2]
[324908571,1714409439379,-5000.0,0.000199,2]
[324908573,1714409439388,-319.48592967,0.000199,2]
[324908576,1714409439397,-157.89272519,0.00019997,2]
[324908578,1714409439407,-5664.14424422,0.00019998,2]
[324908580,1714409439416,-67415.61392424,0.0002,2]
[324908581,1714409439426,-154.75239617,0.0002,2]
[324908584,1714409439436,-5460.61782475,0.0002,2]
[324908586,1714409439446,-241.68429594,0.0002,2]
[324908588,1714409439456,-329.93912296,0.0002,2]
[324908589,1714409439466,-525.01331286,0.0002,4]
[324908591,1714409439476,-80000.0,0.0002,2]
[324908593,1714409439486,-87348.06475574,0.0002,2]
[324908596,1714409439495,-229.02313117,0.0002,2]
[324908598,1714409439505,-364.74351378,0.0002,2]
[324908599,1714409439514,-310.07779484,0.0002,2]
[324908602,1714409439524,-1161.1,0.0002036,3]
[324908604,1714409439534,-580.56,0.0002066,3]
[324908606,1714409439544,-1152.0,0.00021549,2]
[324908607,1714409439553,-3692.7076616,0.00021918,2]
[324908609,1714409439563,-673.92,0.00021918,2]
[324908612,1714409439573,-836.0,0.00021918,2]
[324908614,1714409439583,-696.67,0.00021918,2]
[324908616,1714409439593,-191.6,0.0002199,3]
[324908618,1714409439603,-159.19819518,0.00022,2]
[324908620,1714409439612,-354.96408173,0.00022,2]
[324908622,1714409439622,-158.392943,0.00022466,2]
[324908624,1714409439631,-170.818184,0.00022466,2]
[324908626,1714409439640,-163.852778,0.00022466,2]
[324908628,1714409439650,-301.525914,0.00022466,2]
[324908630,1714409439659,-714.0781204,0.00023,2]
[324908632,1714409439668,-655.0,0.00023703,2]
[324908634,1714409439677,-191.6,0.0002464,3]
[324908636,1714409439687,-500.0,0.00024657,2]
[324908638,1714409439696,-215.306699,0.00025,2]
[324908640,1714409439706,-223.99364454,0.00025,2]
[324908642,1714409439715,-154.75239617,0.00025,2]
[324908644,1714409439724,-2818.00037974,0.00026,9]
[324908646,1714409439733,-622.85965385,0.0002603,2]
[324908648,1714409439742,-2000.0,0.000266,2]
[324908650,1714409439756,-756.73987356,0.000266,2]
[324908652,1714409439764,-1564.03593502,0.000266,2]
[324908654,1714409439774,-10596.07047515,0.000266,2]
[324908656,1714409439783,-8527.63031331,0.00027,2]
[324908658,1714409439793,-191.6,0.0002729,3]
[324908660,1714409439802,-620.14298269,0.00027332,2]
[324908662,1714409439811,-166.666666,0.00027397,2]
[324908664,1714409439820,-424.03324128,0.00028,2]
[324908666,1714409439831,-166.666666,0.00028038,2]
[324908668,1714409439841,-301.525914,0.00028493,2]
[324908670,1714409439850,-166.666666,0.00028679,2]
[324908672,1714409439859,-151.13418049,0.00028999,2]
[324908674,1714409439869,-166.666666,0.00029321,2]
[324908676,1714409439878,-158.392943,0.00029623,2]
[324908678,1714409439887,-1000.0,0.00029647,2]
[324908680,1714409439898,-1000.0,0.00029691,2]
[324908682,1714409439907,-1031.51043822,0.00029711,2]
[324908684,1714409439916,-1000.0,0.00029718,2]
[324908686,1714409439925,-1000.0,0.0002977,2]
[324908688,1714409439935,-1000.0,0.00029776,2]
[324908690,1714409439945,-1000.0,0.0002982,2]
[324908692,1714409439953,-1000.0,0.00029832,2]
[324908694,1714409439964,-1000.0,0.00029891,2]
[324908696,1714409439973,-197.52613622,0.000299,2]
[324908698,1714409439982,-191.6,0.0002994,3]
[324908700,1714409439992,-166.666666,0.00029962,2]
[324908702,1714409440001,-150.0,0.00029999,2]
[324908704,1714409440010,-212.52353908,0.0003,4]
[324908705,1714409440018,-156.20311978,0.0003,4]
[324908708,1714409440028,-272.0,0.0003,2]
[324908712,1714409440038,-166.666666,0.00030603,2]
[324908714,1714409440047,-150.0,0.00030999,2]
[324908716,1714409440057,-286.72543224,0.00031,2]
[324908719,1714409440066,-200.0,0.0003164,120]
[324908721,1714409440076,-44444.0,0.00031836,3]
[324908724,1714409440085,-150.0,0.00031999,2]
[324908727,1714409440095,-638.7649893,0.00032,4]
[324908731,1714409440104,-2187.03816669,0.00032018,2]
[324908733,1714409440114,-2483.30132558,0.00032018,2]
[324908734,1714409440123,-44421.76678401,0.00032018,2]
[324908737,1714409440133,-300.0,0.00032018,2]
[324908738,1714409440143,-781.30639903,0.00032018,2]
[324908741,1714409440152,-1192.06603489,0.00032018,14]
[324908743,1714409440161,-224.62805428,0.00032018,10]
[324908744,1714409440170,-286.55434273,0.00032018,2]
[324908746,1714409440179,-5455.20390675,0.00032018,2]
[324908748,1714409440188,-4087.68306417,0.00032018,2]
[324908750,1714409440197,-315.48630084,0.00032018,2]
[324908752,1714409440206,-281.12466351,0.00032018,2]
[324908754,1714409440216,-4076.13131485,0.00032018,2]
[324908756,1714409440225,-1022.94863432,0.00032018,10]
[324908758,1714409440234,-6632.5736523,0.00032018,5]
[324908760,1714409440244,-19196.75151336,0.00032018,2]
[324908762,1714409440254,-469.05936293,0.00032018,2]
[324908764,1714409440263,-430.70263388,0.00032018,2]
[324908766,1714409440273,-3011.72564414,0.00032018,2]
[324908768,1714409440283,-2867.67739548,0.00032018,2]
[324908770,1714409440292,-1003.38381317,0.00032018,2]
[324908772,1714409440301,-153.34957969,0.00032018,2]
[324908774,1714409440311,-977.55062889,0.00032018,2]
[324908776,1714409440321,-3117.34507208,0.00032273,4]
[324908778,1714409440330,-191.6,0.0003259,5]
[324908780,1714409440340,-150.0,0.00032999,2]
[324908782,1714409440350,-272.0,0.00033,2]
[324908785,1714409440361,-272.0,0.00033,2]
[324908787,1714409440372,-27542.42364653,0.000339,7]
[324908789,1714409440381,-160679.96506472,0.000339,2]
[324908791,1714409440390,-151.0,0.000339,2]
[324908792,1714409440400,-151.0,0.000339,2]
[324908795,1714409440410,-151.0,0.000339,2]
[324908797,1714409440419,-151.0,0.000339,2]
[324908798,1714409440428,-874.261483,0.000339,2]
[324908801,1714409440439,-874.261483,0.000339,2]
[324908802,1714409440449,-221.618425,0.000339,2]
[324908804,1714409440459,-221.618425,0.000339,2]
[324908806,1714409440469,-151.0,0.000339,2]
[324908808,1714409440478,-550.094198,0.000339,2]
[324908810,1714409440487,-151.0,0.000339,2]
[324908812,1714409440496,-550.094198,0.000339,2]
[324908813,1714409440507,-4939.427983,0.000339,2]
[324908814,1714409440517,-1037.805824,0.000339,2]
[324908815,1714409440527,-4939.427983,0.000339,2]
[324908816,1714409440536,-1037.805824,0.000339,2]
[324908817,1714409440545,-869.142926,0.000339,2]
[324908818,1714409440555,-492.730478,0.000339,2]